bitfinex-derivatives/quotes_ETHF0:USTF0_20250321
["timestamp","ask_amount","ask_price","bid_price","bid_amount"]
[1742558064404,5.71591,1966.9,1966.8,42.1206]
[1742558065292,1.01736,1966.8,1966.7,0.00761982]
[1742558065498,2.42986,1966.8,1966.7,0.00761982]
[1742558065700,1.01762,1966.4,1966.3,1.0176]
[1742558065894,1.01762,1966.4,1966.3,42.8762]
[1742558066406,2.43012,1966.4,1966.3,42.8762]
[1742558066609,2.43012,1966.4,1966.3,43.89382]
[1742558067304,2.43012,1966.4,1966.3,42.8762]
[1742558067699,2.43012,1966.4,1966.3,2.0762]
[1742558068108,2.43012,1966.4,1966.3,42.8762]
[1742558068608,1.01762,1966.4,1966.3,43.89382]
[1742558068906,1.01762,1966.4,1966.3,42.8762]
[1742558069105,2.30492,1966.4,1966.3,42.8762]
[1742558069305,2.30492,1966.4,1966.3,43.89382]
[1742558069904,2.30492,1966.4,1966.3,42.8762]
[1742558070206,4.29256,1966.5,1966.4,1.01757]
[1742558070509,4.29256,1966.5,1966.4,1.3955]
[1742558070702,5.68376,1966.5,1966.4,1.3955]
[1742558070897,5.68376,1966.5,1966.4,42.1955]
[1742558073113,5.68476,1966.5,1966.4,42.1955]
[1742558073309,5.68476,1966.5,1966.4,1.3955]
[1742558073815,4.29356,1966.5,1966.4,2.41307]
[1742558074608,3.2078,1966.9,1966.5,1.01752]
[1742558074807,1.0174,1966.8,1966.7,1.01736]
[1742558075009,4.2934,1966.8,1966.7,1.69716]
[1742558075416,4.2934,1966.8,1966.7,0.6798]
[1742558075914,5.66,1966.8,1966.7,1.9679]
[1742558077314,5.66,1966.8,1966.7,2.98532]
[1742558077515,5.66,1966.8,1966.7,1.9679]
[1742558077714,5.66,1966.8,1966.7,2.98532]
[1742558077916,5.66,1966.8,1966.7,1.9679]
[1742558078310,5.66,1966.8,1966.7,2.98532]
[1742558078511,5.66,1966.8,1966.7,1.9679]
[1742558079321,5.66,1966.8,1966.7,2.98532]
[1742558079721,5.66,1966.8,1966.7,1.9679]
[1742558080120,1.01752,1966.5,1966.4,1.01754]
[1742558080521,1.01762,1966.4,1966.3,1.01758]
[1742558081020,1.01762,1966.3,1966.2,40.8050799]
[1742558081224,1.01762,1966.3,1966.2,0.0050799]
[1742558081424,2.31092,1966.3,1966.2,1.4134799]
[1742558081721,6.4848,1966.4,1966.3,1.01762]
[1742558081913,7.50237,1966.4,1966.3,1.01762]
[1742558083922,1.01762,1966.3,1966.2,2.4311099]
[1742558084122,2.41382,1966.3,1966.2,2.4311099]
[1742558084317,1.01762,1966.3,1966.2,2.4311099]
[1742558085521,6.4848,1966.4,1966.3,1.01762]
[1742558085522,4.2946,1966.4,1966.3,1.01762]
[1742558085825,4.2946,1966.4,1966.3,2.32882]
[1742558087324,5.6982,1966.4,1966.3,2.32882]
[1742558091022,3.2078,1966.6,1966.4,1.01752]
[1742558091225,5.68192,1966.5,1966.4,1.3925]
[1742558091416,5.68192,1966.5,1966.4,2.41007]
[1742558092324,5.68192,1966.5,1966.4,1.3925]
[1742558092526,5.68192,1966.5,1966.4,2.41007]
[1742558095028,3.2078,1966.6,1966.5,1.01752]
[1742558095222,4.22527,1966.6,1966.5,2.38762]
[1742558095630,5.64537,1966.6,1966.5,2.38762]
[1742558095827,2.43757,1966.6,1966.5,2.38762]
[1742558097530,1.01747,1966.6,1966.5,2.38762]
[1742558098330,2.40783,1966.7,1966.6,1.01747]
[1742558098526,2.40783,1966.7,1966.6,2.95347]
[1742558100528,2.40783,1966.7,1966.4,5.08762]
[1742558100529,1.01758,1966.5,1966.4,1.01752]
[1742558100729,1.01757,1966.4,1966.3,0.6818]
[1742558100941,12.86389,1966.6,1966.2,4.2305099]
[1742558100942,1.01762,1966.3,1966.2,4.2305099]
[1742558101543,1.01762,1966.3,1966.2,45.0305099]
[1742558101745,2.30922,1966.3,1966.2,5.5934099]
[1742558102337,3.2078,1966.6,1966.3,1.01762]
[1742558102532,2.30912,1966.5,1966.4,1.68617]
[1742558102748,2.30912,1966.5,1966.4,3.04907]
[1742558103044,2.30912,1966.5,1966.4,3.74507]
[1742558103445,1.2916,1966.5,1966.4,3.74507]
[1742558103647,2.30912,1966.5,1966.4,3.74507]
[1742558108052,6.4848,1966.6,1966.5,1.01752]
[1742558108249,7.8488,1966.6,1966.5,2.40082]
[1742558108550,8.86627,1966.6,1966.5,2.40082]
[1742558110053,8.86627,1966.6,1966.5,1.3833]
[1742558110245,9.57407,1966.6,1966.5,1.3833]
[1742558110446,1.01752,1966.5,1966.4,0.696]
[1742558110645,3.04322,1966.5,1966.4,1.01757]
[1742558111147,1.01757,1966.4,1966.3,2.39558]
[1742558111344,2.37337,1966.4,1966.3,1.01758]
[1742558111548,2.37337,1966.4,1966.3,2.39558]
[1742558122148,7.50128,1966.6,1966.5,1.01752]
[1742558122348,4.22528,1966.6,1966.5,1.01752]
[1742558122555,4.22528,1966.6,1966.5,3.08392]
[1742558124155,4.22528,1966.6,1966.5,2.38982]
[1742558124659,5.54678,1966.6,1966.5,2.38982]
[1742558124963,2.54382,1966.5,1966.2,46.5570399]
[1742558125164,1.01762,1966.4,1966.3,1.01757]
[1742558125354,2.34552,1966.4,1966.3,2.43517]
[1742558126054,2.34552,1966.4,1966.3,1.4176]
[1742558126456,3.04582,1966.4,1966.3,2.43522]
[1742558127461,6.32182,1966.4,1966.3,2.43522]
[1742558130763,6.32182,1966.4,1966.3,1.4176]
[1742558130960,9.52962,1966.4,1966.3,1.4176]
[1742558133261,1.01762,1966.3,1966.2,40.8050799]
[1742558133466,2.41642,1966.3,1966.2,40.8050799]
[1742558133864,2.41642,1966.3,1966.2,0.0050799]
[1742558134065,3.55997419,1966.3,1966.2,0.0050799]
[1742558134765,2.41642,1966.3,1966.2,1.3602799]
[1742558139969,2.41642,1966.3,1966.2,2.3779499]
[1742558140168,2.41642,1966.3,1966.2,1.3602799]
[1742558140675,2.41642,1966.3,1966.2,42.1602799]
[1742558143276,2.41642,1966.3,1965.7,3.2078]
[1742558143277,1.3988,1966.3,1965.7,3.2078]
[1742558143466,7.1841,1966.4,1965.8,1.67075]
[1742558143467,1.01788,1965.9,1965.8,1.67075]
[1742558143873,1.01788,1965.9,1965.8,42.47075]
[1742558144674,1.01788,1965.9,1965.8,43.75825]
[1742558145884,2.37448,1965.9,1965.8,43.75825]
[1742558146278,2.37448,1965.9,1965.8,42.7404]
[1742558146877,2.37448,1965.9,1965.8,43.75828]
[1742558147985,4.29482,1966.0,1965.9,1.01783]
[1742558148185,5.59632,1966.0,1965.9,2.31043]
[1742558150284,5.59632,1966.0,1965.9,1.2926]
[1742558150484,5.59632,1966.0,1965.9,2.31043]
[1742558151384,5.59632,1966.0,1965.9,1.2926]
[1742558154088,5.59632,1966.0,1965.9,2.31043]
[1742558154281,5.59632,1966.0,1965.9,1.2926]
[1742558159291,5.59632,1966.0,1965.9,42.0926]
[1742558160596,1.01788,1965.8,1965.7,0.6915]
[1742558160791,7.50268,1965.8,1965.7,0.6915]
[1742558160990,7.50268,1965.8,1965.7,41.4915]
[1742558161190,8.89008,1965.8,1965.7,42.8549]
[1742558162489,4.29488,1965.8,1965.7,43.87283]
[1742558162995,1.01788,1965.8,1965.7,43.87283]
[1742558164096,4.30249982,1965.9,1965.8,1.01788]
[1742558164285,4.30249982,1965.9,1965.8,2.39698]
[1742558166395,1.02549982,1965.9,1965.8,2.39698]
[1742558167391,0.00761982,1965.9,1965.8,5.60478]
[1742558167698,4.29474,1966.2,1966.1,1.01767]
[1742558168202,2.5438,1966.5,1966.1,47.84679]
[1742558168397,1.01761,1966.4,1966.3,1.01757]
[1742558168592,2.41491,1966.4,1966.3,1.01757]
[1742558168792,2.41491,1966.4,1966.3,2.32647]
[1742558169394,1.02517982,1966.5,1966.4,1.01757]
[1742558169593,2.42247982,1966.5,1966.4,2.32647]
[1742558170499,1.40491982,1966.5,1966.4,2.32647]
[1742558170706,0.00761982,1966.5,1966.4,2.32647]
[1742558171299,0.00761982,1966.5,1966.4,2.97487]
[1742558175115,9.58415,1966.9,1966.8,1.01736]
[1742558175319,7.8786,1966.9,1966.8,1.01736]
[1742558175522,8.89591,1966.9,1966.8,1.01736]
[1742558176021,8.89591,1966.9,1966.8,2.37186]
[1742558176215,5.61991,1966.9,1966.8,2.37186]
[1742558177122,2.41211,1966.9,1966.8,2.37186]
[1742558180320,2.41211,1966.9,1966.8,1.3545]
[1742558180520,2.41211,1966.9,1966.8,2.37186]
[1742558186226,3.12231,1966.9,1966.8,2.37186]
[1742558190034,2.41211,1966.9,1966.8,2.37186]
[1742558190229,0.00761982,1967.0,1966.9,1.01731]
[1742558190432,0.00761982,1967.0,1966.9,2.38821]
[1742558190635,3.9292,1967.3,1967.0,5.08608]
[1742558190840,4.94635,1967.3,1967.2,1.01716]
[1742558191337,4.94635,1967.3,1967.2,41.81716]
[1742558191632,0.6542,1967.3,1967.2,41.81716]
[1742558192035,1.6713,1967.3,1967.2,41.81716]
[1742558192234,1.3196,1967.3,1967.2,42.47096]
[1742558192436,0.00761982,1967.4,1967.3,1.0171]
[1742558192633,1.32721982,1967.4,1967.3,3.1237]
[1742558193439,0.00761982,1967.4,1967.3,3.1237]
[1742558200437,0.00761982,1967.4,1967.3,6.3977]
[1742558202640,1.01726,1967.1,1966.9,3.2078]
[1742558202841,2.31026,1967.0,1966.9,3.2078]
[1742558203036,1.01731,1966.9,1966.8,2.41184]
[1742558203343,2.95411,1966.9,1966.8,2.41184]
[1742558204143,1.9368,1966.9,1966.8,2.41184]
[1742558204340,1.293,1966.9,1966.8,2.41184]
[1742558204648,1.293,1966.9,1966.8,3.06314]
[1742558207843,1.293,1966.9,1966.8,43.86314]
[1742558208237,3.274,1967.0,1966.9,1.01731]
[1742558208442,1.01723,1967.1,1967.0,1.01726]
[1742558208443,1.3237,1967.1,1967.0,1.01726]
[1742558209246,1.3237,1967.1,1967.0,41.81726]
[1742558209247,2.34091,1967.1,1967.0,41.81726]
[1742558212039,1.3237,1967.1,1967.0,41.81726]
[1742558212244,4.23251982,1967.4,1967.3,1.0171]
[1742558212442,1.02471982,1967.4,1967.3,1.0171]
[1742558213346,0.00761982,1967.4,1967.3,1.0171]
[1742558213552,2.31456982,1967.4,1967.3,2.4229]
[1742558214438,1.29751982,1967.4,1967.3,2.4229]
[1742558214846,2.31456982,1967.4,1967.3,2.4229]
[1742558215247,1.29751982,1967.4,1967.3,2.4229]
[1742558215441,2.31456982,1967.4,1967.3,2.4229]
[1742558215648,1.29751982,1967.4,1967.3,2.4229]
[1742558216142,2.31456982,1967.4,1967.3,2.4229]
[1742558216349,1.29751982,1967.4,1967.3,2.4229]
[1742558217047,0.00761982,1967.4,1967.3,2.4229]
[1742558218842,0.00761982,1967.4,1967.3,43.2229]
[1742558221554,0.00761982,1967.4,1967.3,46.4307]
[1742558230254,0.00761982,1967.4,1967.3,41.8171]
[1742558230550,1.01716,1967.2,1967.1,1.01717]
[1742558230954,1.01716,1967.2,1967.1,41.81717]
[1742558231151,2.37696,1967.2,1967.1,41.81717]
[1742558232151,2.37696,1967.2,1967.1,40.8]
[1742558232457,2.37696,1967.2,1967.1,41.81721]
[1742558232659,2.37696,1967.2,1967.1,40.8]
[1742558232853,5.64996,1967.2,1967.1,40.8]
[1742558233045,5.64996,1967.2,1967.1,41.81721]
[1742558233648,1.3598,1967.2,1967.1,41.81721]
[1742558236057,1.3598,1967.2,1967.1,43.22951]
[1742558239364,0.6965,1967.3,1967.2,1.01716]
[1742558239559,0.6965,1967.3,1967.2,2.42716]
[1742558240059,1.7136,1967.3,1967.2,2.42716]
[1742558240252,0.6965,1967.3,1967.2,2.42716]
[1742558240749,2.0711,1967.3,1967.2,2.42716]
[1742558243467,2.0711,1967.3,1967.2,1.01716]
[1742558243659,2.0711,1967.3,1967.1,41.81717]
[1742558243866,1.373,1967.2,1967.1,41.81717]
[1742558244463,1.0173,1967.0,1966.9,1.01728]
[1742558244653,7.18897,1967.2,1966.8,1.01732]
[1742558244654,1.01733,1966.9,1966.8,1.01732]
[1742558244860,1.01736,1966.9,1966.8,1.01734]
[1742558245159,4.22516,1966.9,1966.8,40.8]
[1742558245363,1.01736,1966.8,1966.7,1.01741]
[1742558245562,2.39036,1966.8,1966.7,1.01741]
[1742558245962,2.39036,1966.8,1966.7,41.81741]
[1742558247260,5.66336,1966.8,1966.7,40.8]
[1742558247666,5.66336,1966.8,1966.6,1.01743]
[1742558247667,4.646,1966.8,1966.5,1.01747]
[1742558247959,1.01752,1966.6,1966.5,1.01747]
[1742558248161,1.01752,1966.6,1966.5,41.81747]
[1742558248367,2.40302,1966.6,1966.5,41.81747]
[1742558249964,2.40302,1966.6,1966.5,1.01747]
[1742558250268,1.01752,1966.5,1966.4,1.01754]
[1742558250466,2.34452,1966.5,1966.4,41.81754]
[1742558253168,1.327,1966.5,1966.4,41.81754]
[1742558253472,7.1579,1966.7,1966.6,1.01747]
[1742558253663,3.9501,1966.7,1966.6,1.01747]
[1742558253863,4.96754,1966.7,1966.6,1.01747]
[1742558254059,4.96754,1966.7,1966.6,2.34437]
[1742558254271,1.01747,1966.6,1966.5,1.71108]
[1742558254473,2.37227,1966.6,1966.5,3.03798]
[1742558255870,1.3548,1966.6,1966.5,3.03798]
[1742558256068,4.29142,1966.7,1966.6,1.01747]
[1742558256368,3.274,1966.7,1966.6,3.02597]
[1742558256565,4.29142,1966.7,1966.6,3.02597]
[1742558256969,4.29142,1966.7,1966.6,1.3137]
[1742558257472,4.29142,1966.7,1966.6,2.33117]
[1742558257772,5.63442,1966.7,1966.6,2.33117]
[1742558259067,3.2078,1967.0,1966.7,2.54343]
[1742558259367,5.63141,1967.0,1966.9,1.01731]
[1742558259873,5.63141,1967.0,1966.9,3.08031]
[1742558260074,2.35741,1967.0,1966.9,3.08031]
[1742558260575,1.3401,1967.0,1966.9,3.08031]
[1742558260773,4.22499,1967.2,1966.9,2.063]
[1742558260970,4.5479,1967.2,1967.1,1.01721]
[1742558261475,5.56506,1967.2,1967.1,1.66001]
[1742558262271,3.9845,1967.3,1967.2,1.01716]
[1742558262566,6.3979,1967.3,1967.2,2.32286]
[1742558264782,5.3808,1967.3,1967.2,2.32286]
[1742558265179,6.3979,1967.3,1967.2,2.32286]
[1742558265376,4.6703,1967.3,1967.2,2.32286]
[1742558265575,5.6874,1967.3,1967.2,2.32286]
[1742558266079,4.6703,1967.3,1967.2,2.32286]
[1742558266470,1.3963,1967.3,1967.2,2.32286]
[1742558266677,1.67681982,1967.4,1967.3,1.0171]
[1742558266872,3.05481982,1967.4,1967.3,3.0775]
[1742558267678,1.0171,1967.3,1967.2,1.01711]
[1742558267882,6.1952,1967.3,1967.2,1.01711]
[1742558268079,1.01721,1967.1,1967.0,1.69564]
[1742558268375,1.01721,1967.1,1967.0,3.07434]
[1742558268779,1.68811,1967.1,1967.0,3.07434]
[1742558269079,3.01201,1967.1,1967.0,3.07434]
[1742558271980,1.3239,1967.1,1967.0,3.07434]
[1742558272179,2.34111,1967.1,1967.0,3.07434]
[1742558272582,1.3239,1967.1,1967.0,3.07434]
[1742558272972,2.34111,1967.1,1967.0,3.07434]
[1742558273174,1.3239,1967.1,1967.0,3.07434]
[1742558273379,3.274,1967.2,1967.1,1.01721]
[1742558273580,1.3809,1967.3,1967.2,1.01716]
[1742558273781,1.3809,1967.3,1967.2,1.68346]
[1742558273980,4.29869982,1967.4,1967.3,1.0171]
[1742558274276,5.71089982,1967.4,1967.3,2.3166]
[1742558275386,5.71089982,1967.4,1967.3,1.2995]
[1742558275678,1.0171,1967.3,1967.2,1.01711]
[1742558275881,2.0945,1967.3,1967.1,1.01718]
[1742558276084,1.01716,1967.2,1967.1,2.31668]
[1742558276278,2.42936,1967.2,1967.1,1.2995]
[1742558276481,3.09856,1967.2,1967.1,2.31671]
[1742558277580,2.42936,1967.2,1967.1,2.31671]
[1742558282079,1.01721,1967.1,1967.0,1.69562]
[1742558282281,2.42421,1967.1,1967.0,1.01722]
[1742558284684,2.42421,1967.1,1967.0,2.32882]
[1742558285194,1.01731,1966.9,1966.8,1.01733]
[1742558285395,1.01736,1966.8,1966.7,2.32898]
[1742558286097,1.2849,1966.9,1966.6,3.2078]
[1742558286098,1.01747,1966.7,1966.6,1.01742]
[1742558286396,1.9682,1966.7,1966.6,2.40792]
[1742558286794,3.2078,1966.9,1966.6,3.93406]
[1742558286998,4.29128,1967.0,1966.9,1.01731]
[1742558287788,4.29128,1967.0,1966.9,1.67621]
[1742558288495,4.29128,1967.0,1966.9,3.06671]
[1742558289386,4.96708,1967.0,1966.9,3.06671]
[1742558294697,3.274,1967.0,1966.9,3.06671]
[1742558295199,2.31813,1967.1,1967.0,1.01726]
[1742558295392,3.21541982,1967.4,1967.0,1.3759]
[1742558295595,1.01714,1967.3,1967.2,1.0171]
[1742558295789,2.38284,1967.3,1967.2,2.393]
[1742558299095,3.21541982,1967.4,1967.3,1.0171]
[1742558299295,4.23246982,1967.4,1967.3,2.9505]
[1742558299498,5.61256982,1967.4,1967.3,2.9505]
[1742558301200,2.40476982,1967.4,1967.3,2.9505]
[1742558305805,1.38771982,1967.4,1967.3,2.9505]
[1742558306509,0.00761982,1967.4,1967.3,2.9505]
[1742558306701,2.41016982,1967.4,1967.3,2.9505]
[1742558309707,1.39311982,1967.4,1967.3,2.9505]
[1742558309892,0.00761982,1967.4,1967.3,2.9505]
[1742558310097,4.22468,1967.8,1967.3,1.9334]
[1742558310392,4.22468,1967.8,1967.7,1.0169]
[1742558310597,4.22468,1967.8,1967.4,5.1923]
[1742558310598,1.01695,1967.7,1967.6,1.01691]
[1742558310804,1.01695,1967.7,1967.6,40.8]
[1742558311700,2.33015,1967.7,1967.6,40.8]
[1742558311898,2.33015,1967.7,1967.6,41.81695]
[1742558313706,2.33015,1967.7,1967.6,1.01695]
[1742558314505,2.33015,1967.7,1967.6,2.30975]
[1742558317801,1.3132,1967.7,1967.6,2.30975]
[1742558318001,5.59296982,1967.8,1967.7,1.0169]
[1742558318311,4.57611982,1967.8,1967.7,3.7056]
[1742558318613,1.36831982,1967.8,1967.7,3.7056]
[1742558320310,0.00761982,1967.8,1967.7,3.7056]
[1742558320608,9.01445518,1968.0,1967.9,1.01679]
[1742558320817,1.3829,1968.1,1968.0,1.01674]
[1742558321207,4.90621,1968.3,1968.2,1.01664]
[1742558322914,6.30021,1968.3,1968.2,2.36984]
[1742558323208,3.09241,1968.3,1968.2,2.36984]
[1742558324010,0.00761982,1968.4,1968.3,1.01659]
[1742558324209,1.40161982,1968.4,1968.3,2.36979]
[1742558327111,2.41815982,1968.4,1968.3,2.36979]
[1742558327308,2.41815982,1968.4,1968.3,1.3532]
[1742558327722,1.01659,1968.3,1968.2,1.0166]
[1742558327921,1.3638,1968.3,1968.2,1.0166]
[1742558328319,0.00761982,1968.4,1968.3,1.01659]
[1742558329212,5.60618,1968.7,1968.6,1.01643]
[1742558329417,1.01645,1968.6,1968.5,1.01644]
[1742558329619,4.22422,1968.7,1968.6,1.01643]
[1742558330413,4.22422,1968.7,1968.6,2.30273]
[1742558336437,1.6715399,1968.8,1968.7,1.01638]
[1742558336627,1.6715399,1968.8,1968.7,2.38188]
[1742558339431,1.01638,1968.7,1968.6,1.02399982]
[1742558340331,1.01638,1968.7,1968.6,0.00761982]
[1742558340532,1.01659,1968.3,1968.1,3.271]
[1742558340727,1.01659,1968.3,1968.2,1.01661]
[1742558340923,1.01659,1968.3,1968.2,1.3493]
[1742558341125,1.01664,1968.2,1968.1,1.01667]
[1742558342432,1.01669,1968.1,1968.0,2.37363982]
[1742558342937,1.01669,1968.2,1968.1,1.01664]
[1742558343128,1.01669,1968.2,1968.1,1.66134]
[1742558343627,1.01664,1968.2,1968.1,1.66134]
[1742558344132,6.4788,1968.3,1968.2,1.01664]
[1742558344336,7.49539,1968.3,1968.2,1.68974]
[1742558346839,6.4788,1968.3,1968.2,1.68974]
[1742558347739,3.2078,1968.3,1968.2,1.68974]
[1742558348035,4.22439,1968.3,1968.2,1.68974]
[1742558348341,3.2078,1968.3,1968.2,1.68974]
[1742558348530,1.01658,1968.4,1968.3,1.01659]
[1742558348737,3.2078,1968.6,1968.5,1.01648]
[1742558348935,4.5513,1968.6,1968.5,1.01648]
[1742558349129,1.3435,1968.6,1968.5,1.01648]
[1742558350738,2.35993,1968.6,1968.5,1.01648]
[1742558351240,1.3435,1968.6,1968.5,1.01648]
[1742558355647,3.271,1968.7,1968.6,1.01643]
[1742558355938,1.3278799,1968.8,1968.7,1.01638]
[1742558356540,2.3442099,1968.8,1968.7,1.01638]
[1742558358532,1.3278799,1968.8,1968.7,1.01638]
[1742558358742,2.3442099,1968.8,1968.7,2.42828]
[1742558359744,1.3278799,1968.8,1968.7,2.42828]
[1742558360435,1.3278799,1968.8,1968.7,3.13488]
[1742558361132,2.3442099,1968.8,1968.7,2.42828]
[1742558361535,2.3442099,1968.8,1968.3,2.54138]
[1742558361536,7.1397199,1968.8,1968.3,2.54138]
[1742558361736,1.01652,1968.5,1968.4,1.01647]
[1742558361947,1.01545129,1968.5,1968.4,1.01647]
[1742558362339,2.33425129,1968.5,1968.4,1.01647]
[1742558362841,1.01654,1968.4,1968.3,2.31244]
[1742558363037,2.33534,1968.4,1968.3,1.01654]
[1742558366044,5.60634,1968.4,1968.3,1.01654]
[1742558366245,5.60634,1968.4,1968.3,2.34834]
[1742558366549,5.60634,1968.4,1968.3,1.01654]
[1742558367850,1.01659,1968.3,1968.2,2.3484]
[1742558368049,3.66399,1968.3,1968.2,2.3484]
[1742558371851,3.66399,1968.3,1968.2,1.3318]
[1742558372043,1.01664,1968.2,1968.1,0.7004]
[1742558372239,2.35734,1968.2,1968.1,2.0108]
[1742558372442,2.35734,1968.2,1968.1,2.32709]
[1742558372642,2.35734,1968.2,1968.1,1.01669]
[1742558375141,1.01669,1968.1,1968.0,2.33471982]
[1742558375342,2.30309,1968.1,1968.0,0.00761982]
[1742558375548,5.51089,1968.1,1968.0,0.00761982]
[1742558375851,1.01685,1967.8,1967.7,1.662]
[1742558376054,1.01685,1967.8,1967.7,3.0314]
[1742558376553,2.30325,1967.8,1967.7,3.0314]
[1742558376751,2.30325,1967.8,1967.7,2.0145]
[1742558376952,2.30325,1967.8,1967.7,3.0314]
[1742558377154,2.30325,1967.8,1967.7,1.3694]
[1742558378250,2.30325,1967.8,1967.7,2.3863]
[1742558381254,2.30325,1967.8,1967.7,1.3694]
[1742558381448,2.30325,1967.8,1967.7,2.3863]
[1742558381853,2.30325,1967.8,1967.7,1.3694]
[1742558382057,2.30325,1967.8,1967.7,2.3863]
[1742558382253,2.30325,1967.8,1967.7,1.3694]
[1742558382656,2.30325,1967.8,1967.7,2.3863]
[1742558382855,1.0169,1967.7,1967.6,41.82456982]
[1742558383055,2.3234,1967.7,1967.6,43.21676982]
[1742558392268,8.13935,1967.9,1967.8,1.01685]
[1742558392670,8.13935,1967.9,1967.8,1.68015]
[1742558392969,7.49665,1967.9,1967.8,1.68015]
[1742558393365,4.28885,1967.9,1967.8,1.68015]
[1742558393671,5.64505,1967.9,1967.8,3.07965]
[1742558394554,6.34915,1967.9,1967.8,3.07965]
[1742558401576,6.34915,1967.9,1967.8,2.41635]
[1742558402474,6.34915,1967.9,1967.6,0.00761982]
[1742558402674,2.4392,1967.8,1967.7,2.30465]
[1742558404787,1.0169,1967.7,1967.6,0.00761982]
[1742558404977,1.017,1967.5,1967.4,1.3513]
[1742558405174,1.017,1967.5,1967.4,2.36835]
[1742558405479,2.48277508,1967.6,1967.5,1.017]
[1742558405782,2.48277508,1967.6,1967.5,3.0393]
[1742558405783,1.13657508,1967.6,1967.5,3.0393]
[1742558405971,1.0169,1967.7,1967.6,1.01695]
[1742558406175,1.02451982,1967.7,1967.6,2.36825]
[1742558407584,0.00761982,1967.7,1967.6,2.36825]
[1742558408190,0.00761982,1967.7,1967.6,43.16825]
[1742558409085,0.00761982,1967.7,1967.6,43.87505]
[1742558409874,0.00761982,1967.7,1967.6,47.14705]
[1742558410179,1.02451982,1967.7,1967.6,47.14705]
[1742558410381,2.99901982,1967.7,1967.6,47.14705]
[1742558410779,2.99901982,1967.7,1967.6,2.36825]
[1742558411181,1.017,1967.5,1967.4,0.71101982]
[1742558411481,1.01723,1967.1,1967.0,1.0172]
[1742558412085,1.01723,1967.1,1967.0,40.8]
[1742558412280,1.01726,1967.0,1966.9,1.72067]
[1742558412485,2.30536,1967.0,1966.9,1.72067]
[1742558412683,2.30536,1967.0,1966.9,3.14077]
[1742558412884,1.2881,1967.0,1966.9,43.94077]
[1742558413487,2.30536,1967.0,1966.9,43.94077]
[1742558414880,1.2881,1967.0,1966.9,43.94077]
[1742558415185,3.272,1967.1,1967.0,1.01726]
[1742558415382,3.272,1967.1,1967.0,2.32196]
[1742558415888,1.01708,1967.4,1967.3,1.0171]
[1742558416189,2.44008,1967.4,1967.3,1.0171]
[1742558417386,2.44008,1967.4,1967.3,1.6607]
[1742558418192,2.44008,1967.4,1967.3,42.4607]
[1742558418685,3.96571,1967.4,1966.8,5.75881982]
[1742558418892,1.01724,1967.1,1967.0,1.3319]
[1742558419286,1.01724,1967.1,1967.0,43.14916]
[1742558419487,3.02319,1967.2,1967.1,1.01721]
[1742558419688,2.006,1967.2,1967.1,2.34911]
[1742558419884,3.02316,1967.2,1967.1,2.34911]
[1742558420993,2.006,1967.2,1967.1,2.34911]
[1742558421192,3.02316,1967.2,1967.1,2.34911]
[1742558421992,2.006,1967.2,1967.1,2.34911]
[1742558422493,1.3358,1967.2,1967.1,2.34911]
[1742558422690,1.3358,1967.2,1967.1,3.03151]
[1742558423297,0.6553,1967.4,1967.3,1.0171]
[1742558423587,3.8637,1967.5,1967.4,1.01705]
[1742558423588,3.2078,1967.5,1967.4,1.01705]
[1742558423794,4.5014,1967.5,1967.4,41.81705]
[1742558424395,5.5184,1967.5,1967.4,43.84485]
[1742558424988,4.5014,1967.5,1967.4,43.84485]
[1742558425588,5.5184,1967.5,1967.4,43.84485]
[1742558425788,4.5014,1967.5,1967.4,43.84485]
[1742558426496,1.01719,1967.2,1967.1,1.01716]
[1742558427093,0.6969,1967.3,1967.2,1.01716]
[1742558427489,3.2078,1967.5,1967.4,1.01705]
[1742558427686,4.9217,1967.5,1967.4,1.01705]
[1742558427891,1.9997,1967.5,1967.4,1.01705]
[1742558428198,0.70991982,1967.7,1967.4,1.01705]
[1742558428199,0.00761982,1967.7,1967.6,1.01695]
[1742558428398,1.31041982,1967.7,1967.6,1.01695]
[1742558428695,2.32731982,1967.7,1967.6,1.01695]
[1742558428994,1.31041982,1967.7,1967.6,1.01695]
[1742558429394,1.31041982,1967.7,1967.6,1.71635]
[1742558429900,2.32731982,1967.7,1967.6,1.71635]
[1742558431898,1.31041982,1967.7,1967.6,1.71635]
[1742558432093,2.32731982,1967.7,1967.6,1.71635]
[1742558432895,1.31041982,1967.7,1967.6,1.71635]
[1742558433104,0.00761982,1967.7,1967.6,1.71635]
[1742558433293,0.00761982,1967.7,1967.6,3.07405]
[1742558436698,4.88217,1968.2,1967.9,1.01679]
[1742558436895,1.3768,1968.1,1968.0,3.00974]
[1742558437104,1.3768,1968.1,1968.0,3.67224]
[1742558437706,3.2078,1968.2,1968.1,1.01669]
[1742558437908,3.21541982,1968.2,1968.1,2.35399]
[1742558438105,1.38441982,1968.2,1968.1,2.35399]
[1742558439103,2.40105982,1968.2,1968.1,2.35399]
[1742558441012,1.01669,1968.1,1968.0,1.0167]
[1742558441209,1.01674,1968.0,1967.9,0.00761982]
[1742558441507,2.38744,1968.0,1967.9,1.02440982]
[1742558441712,3.73014,1968.0,1967.9,1.02440982]
[1742558443904,3.73014,1968.0,1967.9,0.00761982]
[1742558444312,1.0169,1967.7,1967.6,1.01691]
[1742558444610,7.5057,1967.7,1967.6,1.01691]
[1742558446808,4.2979,1967.7,1967.6,1.01691]
[1742558449903,4.9978,1967.7,1967.6,1.01691]
[1742558454605,3.9809,1967.7,1967.6,1.01691]
[1742558454807,3.9809,1967.7,1967.6,1.71551]